[Event "Fagernes Chess GM-Swiss 2024"]
[Site "Fagernes"]
[Date "2024.03.26"]
[Round "3.14"]
[White "Nandhidhaa, P V"]
[Black "Elsness, Frode"]
[Result "1/2-1/2"]
[ECO "D02"]
[WhiteElo "2305"]
[BlackElo "2437"]
[Annotator "TA"]
[PlyCount "128"]
[EventDate "2024.03.25"]
[EventType "swiss"]
[EventCountry "NOR"]
[SourceTitle "playchess.com"]
[Source "ChessBase"]
[SourceQuality "1"]
[TimeControl "40/6000+30:2400+30"]

{[%evp 9,128,-3,33,33,31,20,31,18,25,33,29,15,16,7,7,-14,0,0,0,0,0,-8,-12,-16,-10,-12,16,16,17,24,25,13,19,0,0,0,44,6,54,65,65,65,65,31,31,31,31,33,70,43,70,59,70,70,70,59,70,59,70,70,70,70,70,70,70,70,70,70,70,70,70,70,70,70,70,70,70,70,70,70,70,8,70,17,17,0,70,0,70,0,70,54,54,54,54,54,54,0,54,19,19,0,0,0,7,7,7,7,7,8,8,21,21,0,0,0,0,0,0,0,0]} 1. d4 {[%emt 0:04:18]} d5 {[%emt 0:05:03]} 2. Bf4 {[%emt 0:00:14]} Nf6 {[%emt 0:01:24]} 3. e3 {[%emt 0:00:13]} c5 {[%emt 0:00:18]} 4. Nf3 {[%emt 0:00:17]} Nc6 {[%emt 0:03:38]} 5. Nbd2 {[%emt 0:00:31]} Nh5 {[%emt 0:01:53]} 6. dxc5 {[%emt 0:01:55]} Nxf4 {[%emt 0:00:14]} 7. exf4 {[%emt 0:00:15]} g6 {[%emt 0:00:57]} 8. Nb3 {[%emt 0:08:23] Weiß steht etwas besser.} Bg7 {[%emt 0:01:07]} 9. c3 {[%emt 0:01:21]} O-O {[%emt 0:00:58]} 10. Be2 {[%emt 0:03:49]} a5 {[%emt 0:07:15]} 11. a4 {[%emt 0:05:51]} b6 {[%emt 0:03:44]} 12. cxb6 {[%emt 0:09:55]} Qxb6 {[%emt 0:01:57]} 13. O-O {[%emt 0:00:38][%cal Oe2b5]} Rd8 {[%emt 0:11:49]} 14. Bb5 {[%emt 0:05:44]} Bg4 {[%emt 0:04:51]} 15. h3 {[%emt 0:05:17]} Bxf3 {[%emt 0:00:13]} 16. Qxf3 {[%emt 0:00:05]} Na7 {[%emt 0:08:28]} 17. Qe3 {[%emt 0:01:56]} d4 {[%emt 0:10:23]} 18. Nxd4 {[%emt 0:02:09]} Bxd4 {[%emt 0:04:32]} 19. cxd4 {[%emt 0:00:10]} Nxb5 {[%emt 0:00:40]} 20. axb5 {[%emt 0:01:07]} Qxb5 {[%emt 0:04:48]} 21. Qxe7 {[%emt 0:05:41]} Rxd4 {[%emt 0:02:34][%cal Bd8d4,Bd4b4,Bb4b5][%mdl 32]} 22. Qe5 {[%emt 0:00:17]} Rb4 {[%emt 0:13:40]} 23. Ra2 {[%emt 0:08:31]} (23. Qxb5 {vereinfacht} Rxb5 24. Ra2 Rd8 25. g3) 23... Re8 {[%emt 0:02:15]} (23... Qxe5 $11 24. fxe5 Re4) 24. Qxb5 $1 $14 {[%emt 0:01:33]} Rxb5 {[%emt 0:00:02][%mdl 4096] Endspiel. KRR-KRR} 25. Rfa1 {[%emt 0:01:18]} Re2 {[%emt 0:00:52]} 26. b3 {[%emt 0:02:06]} Rxa2 {[%emt 0:00:10]} 27. Rxa2 {[%emt 0:00:01]} Rxb3 {[%emt 0:00:37]} 28. Rxa5 {[%emt 0:00:03] KR-KR} Kg7 {[%emt 0:00:40]} 29. h4 {[%emt 0:00:55]} h5 {[%emt 0:01:49]} 30. f5 {[%emt 0:00:13]} Kf6 {[%emt 0:00:33]} 31. fxg6 $1 {[%emt 0:00:10]} fxg6 {[%emt 0:00:01]} 32. Kh2 {[%emt 0:00:50]} Rc3 {[%emt 0:00:27]} 33. Rd5 {[%emt 0:04:17]} Ra3 {[%emt 0:00:09]} 34. Rd4 {[%emt 0:00:15]} Rb3 {[%emt 0:00:52]} 35. Rf4+ {[%emt 0:00:37]} Kg7 {[%emt 0:00:11]} 36. g3 {[%emt 0:00:35]} Ra3 {[%emt 0:00:25]} 37. Kg2 {[%emt 0:00:06]} Rb3 {[%emt 0:00:13]} 38. Rf3 {[%emt 0:00:07]} Rb2 {[%emt 0:00:52]} 39. Re3 {[%emt 0:00:09]} Ra2 {[%emt 0:00:22]} 40. Kf3 {[%emt 0:00:09]} Kf6 {[%emt 0:00:58]} 41. Re2 {[%emt 0:40:07]} Ra3+ {[%emt 0:42:10]} 42. Kf4 {[%emt 0:00:12]} Ra4+ {[%emt 0:01:07]} 43. Re4 $1 {[%emt 0:00:09]} Ra2 {[%emt 0:00:52]} 44. Ke3 {[%emt 0:01:58]} Ra3+ {[%emt 0:00:39]} 45. Kd4 {[%emt 0:01:06]} (45. Kd2 $14) 45... Ra4+ {[%emt 0:02:52]} (45... g5 $11) 46. Kd5 {[%emt 0:01:10]} (46. Kd3 $1 $14 Ra3+ 47. Ke2) 46... Ra5+ $11 {[%emt 0:00:27]} 47. Kd4 {[%emt 0:00:04]} ({Vorzuziehen ist} 47. Kc4 $11) 47... Ra4+ $1 $14 {[%emt 0:00:03]} 48. Ke3 {[%emt 0:00:06]} Ra3+ {[%emt 0:00:20]} 49. Kf4 {[%emt 0:00:06]} Ra2 {[%emt 0:00:12]} 50. f3 {[%emt 0:00:08]} Ra5 {[%emt 0:03:18]} 51. Rb4 {[%emt 0:00:57]} Ra6 {[%emt 0:02:47]} 52. Ke4 {[%emt 0:01:00]} Re6+ {[%emt 0:01:55]} 53. Kf4 {[%emt 0:00:56]} Ra6 $1 {[%emt 0:00:04]} 54. g4 {[%emt 0:00:06]} hxg4 $1 {[%emt 0:00:08] Die Stellung ist ausgeglichen.} 55. fxg4 {[%emt 0:00:04]} g5+ {[%emt 0:04:21]} 56. hxg5+ {[%emt 0:00:13]} Kg6 {[%emt 0:00:01]} 57. Re4 {[%emt 0:00:19]} Rb6 {[%emt 0:01:10]} 58. Re5 {[%emt 0:00:09]} Rb4+ {[%emt 0:00:53]} 59. Kg3 {[%emt 0:00:25]} Rb1 {[%emt 0:00:31]} 60. Rf5 {[%emt 0:01:04]} Rg1+ {[%emt 0:00:33]} 61. Kf4 {[%emt 0:00:43]} Rf1+ {[%emt 0:00:07]} 62. Ke5 {[%emt 0:00:28]} Re1+ {[%emt 0:00:13]} ({Und nicht} 62... Rxf5+ 63. gxf5+ Kxg5 64. f6 Kh6 65. Kf5 Kh7 66. Ke6 Kg8 67. Ke7) 63. Kf4 {[%emt 0:00:11]} Rf1+ {[%emt 0:00:04]} 64. Ke5 {[%emt 0:00:05]} Re1+ {[%emt 0:00:04] Gewichteter Fehlerwert: Weiß=0.13 (sehr präzise) /Schwarz=0.07 (makellos) .  Fehler:       	Weiß=3     	Schwarz=2     Ungenau:       	Weiß=4     	Schwarz=4     OK:         	Weiß=16    	Schwarz=24    Bester:       	Weiß=1     	Schwarz=7     Stark:        	Weiß=3     	Schwarz=3} 1/2-1/2

[Event "Fagernes Chess GM-Swiss 2024"]
[Site "Fagernes"]
[Date "2024.03.26"]
[Round "3.15"]
[White "Johansson, Linus"]
[Black "Dushyant Sharma"]
[Result "1-0"]
[ECO "D32"]
[WhiteElo "2427"]
[BlackElo "2331"]
[Annotator "TA"]
[PlyCount "97"]
[EventDate "2024.03.25"]
[EventType "swiss"]
[EventCountry "NOR"]
[SourceTitle "playchess.com"]
[Source "ChessBase"]
[SourceQuality "1"]
[TimeControl "40/6000+30:2400+30"]

{[%evp 20,97,0,0,-10,-6,34,38,58,53,91,22,25,27,18,21,35,19,19,0,6,0,0,-31,0,0,0,0,0,0,0,0,0,0,0,0,0,0,3,0,0,0,0,-8,0,0,0,0,0,0,0,0,0,0,0,0,88,0,237,237,380,375,386,356,443,449,433,434,472,471,461,461,831,790,2161,990,29971,29972,29959,29957]} 1. d4 {[%emt 0:00:03]} d5 {[%emt 0:00:08]} 2. c4 {[%emt 0:00:03]} e6 {[%emt 0:00:08]} 3. Nc3 {[%emt 0:00:04]} c5 {[%emt 0:00:33]} 4. cxd5 {[%emt 0:00:33]} exd5 {[%emt 0:00:07]} 5. e3 {[%emt 0:00:33]} cxd4 {[%emt 0:05:10]} 6. exd4 {[%emt 0:00:31] D32: Tarrasch Defence: Sidelines and lines without g3.} Nf6 {[%emt 0:00:39] 6...Nc6 deserves study.} 7. Bb5+ {[%emt 0:00:05]} Bd7 {[%emt 0:04:09]} 8. Bd3 $146 {[%emt 0:00:57]} ({Predecessor:} 8. Qb3 Qa5 9. Bd2 Bb4 10. Bd3 Nc6 11. Nge2 O-O 12. O-O Rfe8 13. a3 Bxc3 14. bxc3 {0-1 Bologan,V (2608)-Dreev,A (2639) Linares Anibal op 06th 1999 (10)}) 8... Nc6 {[%emt 0:01:58]} 9. Nge2 {[%emt 0:00:08]} Bd6 {[%emt 0:01:41]} 10. O-O {[%emt 0:00:48]} O-O {[%emt 0:00:37]} 11. h3 {[%emt 0:02:12]} h6 {[%emt 0:00:48]} 12. Be3 {[%emt 0:08:16]} Qc8 {[%emt 0:03:25]} 13. Ng3 {[%emt 0:05:42]} Nb4 {[%emt 0:44:19]} 14. Bb1 {[%emt 0:02:45]} Re8 {[%emt 0:02:12] [#]} 15. Qf3 {[%emt 0:02:18]} (15. Nh5 $1 $16 {[%cal Rh5f6] Nxf6+ is the strong threat.} Nxh5 16. Qxh5) 15... Qd8 $11 {[%emt 0:01:18]} 16. Nf5 {[%emt 0:18:12]} Bxf5 {[%emt 0:05:07]} 17. Bxf5 {[%emt 0:00:07]} Nc6 {[%emt 0:02:00]} 18. Rad1 {[%emt 0:04:52]} (18. Nxd5 $2 Nxd5 19. Bc2 (19. Qxd5 $2 Bh2+ 20. Kxh2 Qxd5 $19) 19... Bc7 $19) 18... Qb6 {[%emt 0:01:13]} 19. Rd2 {[%emt 0:14:29]} Rad8 {[%emt 0:10:39]} 20. Bb1 {[%emt 0:00:22]} (20. Nxd5 $2 Nxd5 21. Be4 (21. Qxd5 $2 Bh2+ 22. Kxh2 Rxd5 $19) 21... Nf6 22. Bxc6 Qxc6 $19 (22... bxc6 $2 23. d5 $19)) 20... Bb4 {[%emt 0:01:17]} 21. Rd3 {[%emt 0:08:17]} Bxc3 {[%emt 0:03:50]} 22. Rxc3 {[%emt 0:00:34]} Nxd4 {[%emt 0:02:04]} (22... Qxb2 $2 23. Rb3 Nxd4 (23... Qa1 $2 24. Bh7+ Kxh7 25. Rxa1 $18) 24. Rxb2 $18) 23. Qd1 {[%emt 0:02:47]} Ne2+ {[%emt 0:00:05]} 24. Qxe2 {[%emt 0:00:05]} d4 {[%emt 0:00:03]} 25. Bxd4 {[%emt 0:09:49]} Rxd4 {[%emt 0:07:49]} 26. Qf3 {[%emt 0:02:35]} Rb4 {[%emt 0:06:31]} 27. b3 {[%emt 0:00:54]} Rd4 {[%emt 0:01:01]} 28. Rfc1 {[%emt 0:01:21]} Red8 {[%emt 0:03:24]} 29. g3 {[%emt 0:04:08]} g6 {[%emt 0:01:02]} 30. Rc4 {[%emt 0:07:00]} Kg7 {[%emt 0:01:00]} 31. Kg2 {[%emt 0:00:25]} Rxc4 {[%emt 0:00:49]} 32. Rxc4 {[%emt 0:00:39]} Rd2 {[%emt 0:00:19]} 33. Rc2 {[%emt 0:04:14]} Rxc2 {[%emt 0:01:03]} 34. Bxc2 {[%emt 0:00:03]} Qc5 {[%emt 0:00:22]} 35. Bd3 {[%emt 0:00:47]} b5 {[%emt 0:00:31]} 36. Qb7 {[%emt 0:00:59]} a6 $1 {[%emt 0:00:27]} 37. a4 {[%emt 0:02:34]} bxa4 {[%emt 0:00:28]} (37... Qc3 $11 38. Bf1 Qd4) 38. bxa4 {[%emt 0:00:29]} (38. Qxa6 $2 axb3 39. Kf1 b2 $19) (38. Bc4 $16 Qf8 39. bxa4 (39. Qxa6 axb3 40. Bxb3 Qe8 $11)) 38... Nd5 $2 {[%emt 0:00:41]} (38... a5 $11) 39. Bxa6 $18 {[%emt 0:03:36]} ({And not} 39. Qxa6 Nb4 40. Qb5 Nxd3 41. Qxd3 Qc6+ 42. Kh2 Qxa4 $11) 39... Qd4 {[%emt 0:00:31]} (39... h5 $142 40. Qb5 Qd6 41. Qb2+ f6) 40. Bf1 $18 {[%emt 0:01:49]} h5 {[%emt 0:00:30]} 41. Qb3 {[%emt 0:08:27]} h4 {[%emt 0:08:47]} 42. Qc4 {[%emt 0:01:43]} Qd2 {[%emt 0:01:01]} 43. Qxh4 {[%emt 0:04:45]} (43. gxh4 $2 {perishes.} Ne3+ 44. Kg1 Nxc4 $19) 43... f5 {[%emt 0:02:44]} 44. Kg1 {[%emt 0:01:32]} f4 {[%emt 0:01:03]} 45. Qg5 {[%emt 0:03:05]} Qd4 {[%emt 0:05:02]} (45... Kh7 $142 46. g4 Kg7) 46. a5 $18 {[%emt 0:00:52]} f3 {[%emt 0:01:12]} 47. a6 {[%emt 0:01:52]} Nc3 {[%emt 0:00:53]} 48. Qe7+ {[%emt 0:00:47]} Kh6 {[%emt 0:00:26]} 49. Qe3+ {[%emt 0:00:24]} 1-0

[Event "Fagernes Chess GM-Swiss 2024"]
[Site "Fagernes"]
[Date "2024.03.26"]
[Round "3.16"]
[White "Celik, Hasan Huseyin"]
[Black "Vagman, Roy"]
[Result "1/2-1/2"]
[ECO "D24"]
[WhiteElo "2417"]
[BlackElo "2311"]
[Annotator "TA"]
[PlyCount "169"]
[EventDate "2024.03.25"]
[EventType "swiss"]
[EventCountry "NOR"]
[SourceTitle "playchess.com"]
[Source "ChessBase"]
[SourceQuality "1"]
[TimeControl "40/6000+30:2400+30"]

{[%evp 9,169,27,49,42,37,47,45,45,49,50,62,37,70,27,40,0,15,11,4,-5,-10,-14,-9,-16,0,9,12,0,8,0,0,-18,0,0,0,-14,0,0,0,0,0,0,0,-21,-12,-25,-18,-22,-14,-44,-31,-33,-32,-37,-31,-19,-16,-48,-22,-23,-35,-36,-29,-29,-29,-29,-29,-25,-25,-25,-25,-51,-51,-113,-51,-60,-60,-113,-113,-113,-113,-113,-113,-113,-113,-547,-547,-547,-547,-547,-547,-532,-524,-516,-516,-516,-488,-803,-692,-765,-589,-1200,-5181,-5616,-10600,-7752,-5812,-10871,-10750,-10360,-9955,-1691,-30,-56,-73,-101,-101,-101,-101,-101,-101,-2398,0,-8,0,-2885,-2761,-29954,-5146,-5146,-3158,-29957,-29963,-29960,-29962,-29964,-29966,-29968,-29969,-29971,-29970,-29972,-29973,-29973,-29974,-29973,-29975,-29975,-29976,-29977,-29976,-29976,0,0,0,0,0,0,0,0,0,0]} 1. d4 {[%emt 2:40:49]} d5 {[%emt 0:00:16]} 2. c4 {[%emt 0:00:17]} e6 {[%emt 0:00:08]} 3. Nf3 {[%emt 0:01:23]} Nf6 {[%emt 0:00:20]} 4. Nc3 {[%emt 0:00:26]} dxc4 {[%emt 0:00:59]} 5. e4 {[%emt 0:00:13][%cal Be2e4,Be4e5][%mdl 32]} b5 {[%emt 0:00:18]} 6. e5 $1 {[%emt 0:00:10]} Nd5 {[%emt 0:00:17]} 7. Nxb5 {[%emt 0:00:11]} Nb6 {[%emt 0:00:12]} 8. Be2 {[%emt 0:00:19] White is slightly better.} Nc6 {[%emt 0:00:59]} 9. O-O {[%emt 0:00:13]} Be7 {[%emt 0:01:38]} 10. Qd2 {[%emt 0:01:16]} Qd7 {[%emt 0:03:56]} 11. Rd1 {[%emt 0:16:45] White is more active.} Bb7 {[%emt 0:04:41]} 12. b3 {[%emt 0:09:20]} cxb3 {[%emt 0:05:22]} 13. axb3 {[%emt 0:01:42]} O-O {[%emt 0:06:50]} 14. Qc2 {[%emt 0:06:48]} a6 {[%emt 0:06:25]} 15. Nc3 {[%emt 0:00:25]} Nb4 {[%emt 0:00:45]} 16. Qb1 {[%emt 0:01:02]} Qc6 {[%emt 0:14:52]} 17. Bd2 {[%emt 0:02:16]} N4d5 {[%emt 0:05:33]} 18. Nxd5 {[%emt 0:11:57]} Nxd5 {[%emt 0:02:38]} 19. Bd3 {[%emt 0:03:09]} h6 {[%emt 0:02:05]} 20. Re1 {[%emt 0:11:48]} Bb4 {[%emt 0:06:48]} 21. Bxb4 {[%emt 0:08:19]} Nxb4 {[%emt 0:00:10]} 22. Bh7+ {[%emt 0:00:12]} Kh8 {[%emt 0:00:09]} 23. Be4 {[%emt 0:00:10]} Qb5 {[%emt 0:06:23]} 24. Rc1 {[%emt 0:04:05]} Bxe4 {[%emt 0:03:26]} 25. Qxe4 {[%emt 0:00:02]} Nd5 {[%emt 0:01:48]} 26. Rab1 {[%emt 0:02:58]} a5 {[%emt 0:01:36]} 27. h3 {[%emt 0:00:31]} a4 {[%emt 0:01:35]} 28. bxa4 {[%emt 0:00:12]} Qxa4 {[%emt 0:00:11]} 29. Rb2 {[%emt 0:03:46]} Rab8 {[%emt 0:03:28]} 30. Qc2 {[%emt 0:01:26]} Qxc2 {[%emt 0:03:00]} 31. Rcxc2 {[%emt 0:00:13]} Rxb2 {[%emt 0:00:42]} 32. Rxb2 $15 {[%emt 0:00:01][%mdl 4096] Endgame. KRN-KRN} g5 {[%emt 0:02:38]} 33. Nh2 {[%emt 0:04:47]} Ra8 {[%emt 0:00:57]} 34. Ng4 {[%emt 0:00:17]} Ra1+ {[%emt 0:02:25]} 35. Kh2 {[%emt 0:00:09]} Kg7 {[%emt 0:06:47]} 36. Ne3 {[%emt 0:00:27] Dodges Rd1} Nxe3 {[%emt 0:02:06]} 37. fxe3 $11 {[%emt 0:00:02] KR-KR} Ra3 {[%emt 0:01:01]} 38. Rc2 {[%emt 0:00:47]} Rxe3 {[%emt 0:00:09]} 39. Rxc7 {[%emt 0:00:02]} Rd3 {[%emt 0:00:15]} 40. Rc4 {[%emt 0:02:17]} h5 {[%emt 0:01:56]} 41. Kg1 {[%emt 0:02:46]} (41. g4 $15) 41... Rd2 {[%emt 0:01:30]} (41... Kg6 $17) 42. Ra4 {[%emt 0:01:59]} Kg6 {[%emt 0:01:06]} 43. Rb4 {[%emt 0:03:53]} ({Better is} 43. g3 $15) 43... h4 $1 $17 {[%emt 0:24:35]} 44. Kf1 {[%emt 0:11:10]} Kf5 {[%emt 0:02:39]} 45. Rb7 {[%emt 0:00:33]} Rxd4 {[%emt 0:01:12]} 46. Rxf7+ {[%emt 0:00:15]} Kxe5 {[%emt 0:00:01]} 47. Ke2 $2 {[%emt 0:03:01][%mdl 8192]} (47. Kg1 $17 {nothing else works.}) 47... Re4+ $19 {[%emt 0:06:13]} 48. Kd3 {[%emt 0:00:30]} Re1 $1 {[%emt 0:02:11]} 49. Rf2 {[%emt 0:04:55]} Ra1 $1 {[%emt 0:00:52]} 50. Re2+ {[%emt 0:00:25]} Kd5 {[%emt 0:12:22]} 51. Rb2 {[%emt 0:10:23]} Ra3+ {[%emt 0:00:24]} 52. Ke2 {[%emt 0:00:16]} e5 {[%emt 0:00:09]} 53. Rb5+ {[%emt 0:08:07]} (53. Kf2 $142 Ke4 54. Rb7) 53... Ke4 {[%emt 0:00:16]} 54. Rb4+ {[%emt 0:00:17]} Kf5 {[%emt 0:00:05]} 55. Rg4 {[%emt 0:00:35]} e4 {[%emt 0:03:27]} 56. Kf2 {[%emt 0:00:50]} Ra2+ {[%emt 0:00:38]} 57. Kf1 {[%emt 0:02:30]} Rc2 {[%emt 0:02:12]} 58. g3 {[%emt 0:01:41]} hxg3 {[%emt 0:00:10]} 59. Rxg3 {[%emt 0:00:09]} Kf4 {[%emt 0:00:04]} 60. Ra3 {[%emt 0:00:18]} Rd2 $2 {[%emt 0:01:04]} (60... Rh2 $1 $19 {White must now prevent ...e3.} 61. Ra8 Rxh3) 61. Ra8 {[%emt 0:00:41]} Kg3 {[%emt 0:02:11]} 62. Rg8 {[%emt 0:01:28]} Rf2+ {[%emt 0:00:17]} ({Of course not} 62... Kxh3 $6 63. Rxg5 e3 64. Ke1 $11) 63. Ke1 {[%emt 0:00:27]} Rf5 $1 {[%emt 0:00:13]} 64. Rh8 {[%emt 0:00:12] [#]} Kf3 $1 {[%emt 0:00:30]} 65. Re8 $2 {[%emt 0:03:30][%mdl 8192]} (65. Kf1 $17) 65... Kg3 $2 {[%emt 0:01:12]} (65... Ra5 $19 66. Rf8+ Kg2) 66. Rh8 $1 $11 {[%emt 0:00:09]} Kf3 $2 {[%emt 0:00:17][%mdl 8192]} (66... Kf4 $11) 67. Re8 $19 {[%emt 0:00:05]} Ra5 {[%emt 0:01:00]} 68. Re7 {[%emt 0:01:57]} Ra1+ {[%emt 0:00:23]} 69. Kd2 Ra2+ {[%emt 0:00:23]} 70. Ke1 Rh2 {[%emt 0:00:29]} 71. Rf7+ {[%emt 0:01:03]} Ke3 {[%emt 0:00:16]} 72. Kf1 {[%emt 0:00:04]} Rxh3 {[%emt 0:00:11]} 73. Kg2 {[%emt 0:00:02]} Rf3 {[%emt 0:00:23]} 74. Rg7 {[%emt 0:00:12]} Rf5 {[%emt 0:00:33]} 75. Kg3 {[%emt 0:00:02]} Ke2 {[%emt 0:01:04]} 76. Ra7 {[%emt 0:00:05]} Rd5 {[%emt 0:00:34]} 77. Ra2+ {[%emt 0:00:07]} Rd2 {[%emt 0:00:06]} 78. Ra5 {[%emt 0:00:03]} e3 {[%emt 0:00:14]} 79. Rxg5 {[%emt 0:00:07]} Kf1 {[%emt 0:00:55]} 80. Rh5 {[%emt 0:00:22] [#]} Ke2 $2 {[%emt 0:01:06]} (80... Kg1 $1 {mates} 81. Re5 e2 82. Re3 Rc2 (82... Rd3 $2 83. Rxd3 e1=Q+ 84. Kf4 $19) 83. Kg4 Kf1 84. Kf5 e1=Q (84... e1=B 85. Ke4 $15) 85. Rxe1+ Kxe1 86. Ke4 Rc5 87. Kd3 Ra5 88. Ke4 Ke2 89. Kd4 Kf3 90. Kc4 Ke3 91. Kb4 Rh5 92. Kc4 Re5 93. Kc3 Re4 94. Kc2 Rc4+ 95. Kb2 Kd2 96. Kb3 Rd4 97. Kb2 Rd3 98. Ka1 Kc2 99. Ka2 Rh3 100. Ka1 Ra3#) 81. Ra5 $11 {[%emt 0:02:00] The position is equal.} Ke1 {[%emt 0:00:37]} (81... Rd3 $5 82. Ra1 $8 Rd7 83. Ra2+ Kd3 $11) 82. Kf3 $1 {[%emt 0:00:16]} e2 {[%emt 0:00:08] ( -> ...Kf1)} (82... Rd3 $5 83. Ra1+ $8 Rd1 84. Rxd1+ Kxd1 85. Kxe3 $11) 83. Ke3 $1 {[%emt 0:00:02]} Kd1 {[%emt 0:01:30]} (83... Kf1 $5 84. Rf5+ $8 Ke1 $11) 84. Ra1+ {[%emt 0:00:04]} Kc2 {[%emt 0:00:01]} 85. Re1 {[%emt 0:00:06] Weighted Error Value: White=0.46/Black=0.16 (very precise) .  Loses game:     	White=2     	---        Missed win:     	---       	Black=1      Mistake:       	White=3     	Black=1      Inaccurate:     	White=5     	Black=2      OK:         	White=15    	Black=22     Best:        	White=11    	Black=4      Strong:       	White=3     	Black=5} 1/2-1/2

[Event "Fagernes Chess GM-Swiss 2024"]
[Site "Fagernes"]
[Date "2024.03.26"]
[Round "3.17"]
[White "Ingebretsen, Jens E"]
[Black "Shivika Rohilla"]
[Result "1-0"]
[ECO "B33"]
[WhiteElo "2402"]
[BlackElo "2003"]
[Annotator "TA"]
[PlyCount "77"]
[EventDate "2024.03.25"]
[EventType "swiss"]
[EventCountry "NOR"]
[SourceTitle "playchess.com"]
[Source "ChessBase"]
[SourceQuality "1"]
[TimeControl "40/6000+30:2400+30"]

{[%evp 26,77,19,14,24,11,8,15,45,28,23,27,41,28,31,26,64,50,77,13,39,45,56,52,56,40,101,102,257,245,340,347,341,347,447,435,438,437,607,385,1854,1787,5277,2726,29988,29989,29990,29991,29991,29989,29988,29989,29989,29989]} 1. e4 {[%emt 0:00:02]} c5 {[%emt 0:02:43]} 2. Nf3 {[%emt 0:00:05]} e6 {[%emt 0:00:05]} 3. d4 {[%emt 0:00:03]} cxd4 {[%emt 0:00:05]} 4. Nxd4 {[%emt 0:00:03]} Nf6 {[%emt 0:00:06]} 5. Nc3 {[%emt 0:00:03]} Nc6 {[%emt 0:00:09]} 6. Ndb5 {[%emt 0:00:05]} d6 {[%emt 0:00:10]} 7. Bf4 {[%emt 0:00:05]} e5 {[%emt 0:00:06]} 8. Bg5 {[%emt 0:00:02]} a6 {[%emt 0:00:08]} 9. Na3 {[%emt 0:00:02]} b5 {[%emt 0:00:06]} 10. Nd5 {[%emt 0:00:04]} Be7 {[%emt 0:00:05]} 11. Bxf6 {[%emt 0:00:03]} Bxf6 {[%emt 0:00:09]} 12. c3 {[%emt 0:00:03]} Rb8 {[%emt 0:00:23]} 13. Nc2 {[%emt 0:00:16]} Bg5 {[%emt 0:01:09]} 14. a4 {[%emt 0:00:44]} bxa4 {[%emt 0:00:19]} 15. Ncb4 {[%emt 0:00:04]} Nxb4 {[%emt 0:00:07]} 16. cxb4 {[%emt 0:00:06]} O-O {[%emt 0:00:27] Die Stellung ist ausgeglichen.} 17. Rxa4 {[%emt 0:00:36]} a5 {[%emt 0:00:07]} 18. b5 {[%emt 0:00:23]} Bd7 {[%emt 0:00:53]} 19. Nc3 {[%emt 0:00:04][%cal Of1c4]} d5 {[%emt 0:01:10]} 20. exd5 {[%emt 0:00:01]} f5 {[%emt 0:04:32]} 21. Be2 {[%emt 0:00:48]} Kh8 {[%emt 0:01:34]} 22. d6 {[%emt 0:05:29]} (22. O-O $16) 22... Be6 {[%emt 0:13:44]} 23. O-O {[%emt 0:11:00]} Rb6 {[%emt 0:03:24]} 24. Rxa5 {[%emt 0:00:45] [#] Droht stark Ra6.} Rxd6 {[%emt 0:00:21]} 25. Qa1 {[%emt 0:01:10]} Bf4 {[%emt 0:30:07]} (25... Re8 $14) 26. g3 $16 {[%emt 0:02:59]} Bd2 {[%emt 0:00:30] Führt Schwarz ins Verderben.} (26... Bg5 $16 {war einen Versuch wert.}) 27. Ra6 $18 {[%emt 0:04:09] Zielt auf Qa3 ab.} e4 {[%emt 0:04:17]} 28. Qa3 {[%emt 0:02:49]} Rxa6 {[%emt 0:03:09]} 29. bxa6 {[%emt 0:02:37]} Bc8 {[%emt 0:20:49]} 30. Rd1 {[%emt 0:05:12][%cal Od1d2] [#] Rxd2! ist eine echte Drohung.} e3 {[%emt 0:04:30]} 31. fxe3 {[%emt 0:10:48]} Re8 {[%emt 0:05:03]} 32. Bf3 {[%emt 0:13:38] Droht a7 und aus.} Rxe3 $2 {[%emt 0:12:27]} (32... Bxe3+ 33. Kg2 Qc7) 33. a7 {[%emt 0:05:00]} Rxf3 {[%emt 0:00:08]} 34. a8=Q {[%emt 0:02:40] Droht Matt per Rxd2.} ({Nicht} 34. a8=B Rd3 $11 (34... Rxc3 $2 35. bxc3 Be6 36. Bf3 $18)) 34... Qb6+ {[%emt 0:01:33]} 35. Kh1 {[%emt 0:01:07][%cal Ra3f8] Weiß setzt Matt.} Rf1+ {[%emt 0:00:59]} 36. Rxf1 {[%emt 0:00:10][%cal Ra3f8]} Qb7+ {[%emt 0:00:07]} 37. Qxb7 {[%emt 0:00:26]} Bxb7+ {[%emt 0:00:05]} 38. Kg1 {[%emt 0:00:03][%cal Ra3f8]} Be3+ {[%emt 0:00:05]} 39. Rf2 {[%emt 0:00:03] Gewichteter Fehlerwert: Weiß=0.19 (sehr präzise) /Schwarz=0.68.  Fehler:       	Weiß=1     	Schwarz=3     Ungenau:       	Weiß=1     	Schwarz=7     OK:         	Weiß=11    	Schwarz=7     Bester:       	Weiß=2     	---} 1-0